fUSD/lending_fUSD_20260531
["ID","MTS","AMOUNT","RATE_DAILY","PERIOD"]
[423504971,1780174242000,-500.0,0.00013698,2]
[423504974,1780174242000,-500.0,0.00013698,2]
[423504980,1780174242000,-500.0,0.00013698,2]
[423504990,1780174242000,-2089.59,0.00013698,2]
[423504991,1780174242000,-2089.59,0.00013698,2]
[423504978,1780174242000,-500.0,0.00013698,2]
[423504983,1780174242000,-500.0,0.00013698,2]
[423504993,1780174242000,-2089.59,0.00013698,2]
[423504994,1780174242000,-2089.59,0.00013698,2]
[423504987,1780174242000,-500.0,0.00013698,2]
[423504989,1780174242000,-500.0,0.00013698,2]
[423504992,1780174242000,-2089.59,0.00013698,2]
[423504985,1780174242000,-500.0,0.00013698,2]
[423504988,1780174242000,-500.0,0.00013698,2]
[423505021,1780174242000,-500.0,0.00013698,2]
[423504986,1780174242000,-500.0,0.00013698,2]
[423504982,1780174242000,-500.0,0.00013698,2]
[423504981,1780174242000,-500.0,0.00013698,2]
[423504984,1780174242000,-500.0,0.00013698,2]
[423504979,1780174242000,-500.0,0.00013698,2]
[423505068,1780174243000,-151.0,0.00013699,2]
[423505072,1780174243000,-151.0,0.00013699,2]
[423505069,1780174243000,-151.0,0.00013699,2]
[423505066,1780174243000,-151.0,0.00013699,2]
[423505056,1780174243000,-151.0,0.00013699,2]
[423505057,1780174243000,-151.0,0.00013699,2]
[423505055,1780174243000,-151.0,0.00013699,2]
[423505059,1780174243000,-151.0,0.00013699,2]
[423505061,1780174243000,-151.0,0.00013699,2]
[423505060,1780174243000,-151.0,0.00013699,2]
[423505063,1780174243000,-151.0,0.00013699,2]
[423505075,1780174243000,-151.0,0.00013699,2]
[423505074,1780174243000,-151.0,0.00013699,2]
[423505067,1780174243000,-151.0,0.00013699,2]
[423505071,1780174243000,-151.0,0.00013699,2]
[423505070,1780174243000,-151.0,0.00013699,2]
[423505065,1780174243000,-151.0,0.00013699,2]
[423505077,1780174243000,-151.0,0.00013699,2]
[423505076,1780174243000,-151.0,0.00013699,2]
[423505087,1780174243000,-151.0,0.00013699,2]
[423505078,1780174243000,-151.0,0.00013699,2]
[423505080,1780174243000,-151.0,0.00013699,2]
[423505084,1780174243000,-151.0,0.00013699,2]
[423505081,1780174243000,-151.0,0.00013699,2]
[423505058,1780174243000,-151.0,0.00013699,2]
[423505073,1780174243000,-151.0,0.00013699,2]
[423505062,1780174243000,-151.0,0.00013699,2]
[423505039,1780174243000,-727.47,0.00013699,2]
[423505064,1780174243000,-151.0,0.00013699,2]
[423505027,1780174243000,-500.0,0.00013698,2]
[423505028,1780174243000,-604.59973657,0.00013698,2]
[423505030,1780174243000,-500.0,0.00013698,2]
[423505031,1780174243000,-500.0,0.00013698,2]
[423505029,1780174243000,-500.0,0.00013698,2]
[423505033,1780174243000,-500.0,0.00013698,2]
[423505035,1780174243000,-500.0,0.00013698,2]
[423505043,1780174243000,-151.0,0.00013699,2]
[423505034,1780174243000,-500.0,0.00013698,2]
[423505032,1780174243000,-500.0,0.00013698,2]
[423505038,1780174243000,-166.66,0.00013699,2]
[423505037,1780174243000,-9568.13,0.00013699,2]
[423505054,1780174243000,-151.0,0.00013699,2]
[423505036,1780174243000,-500.0,0.00013698,2]
[423505041,1780174243000,-151.0,0.00013699,2]
[423505042,1780174243000,-151.0,0.00013699,2]
[423505044,1780174243000,-151.0,0.00013699,2]
[423505045,1780174243000,-151.0,0.00013699,2]
[423505049,1780174243000,-151.0,0.00013699,2]
[423505046,1780174243000,-151.0,0.00013699,2]
[423505050,1780174243000,-151.0,0.00013699,2]
[423505047,1780174243000,-151.0,0.00013699,2]
[423505048,1780174243000,-151.0,0.00013699,2]
[423505051,1780174243000,-151.0,0.00013699,2]
[423505052,1780174243000,-151.0,0.00013699,2]
[423505053,1780174243000,-151.0,0.00013699,2]
[423505040,1780174243000,-721.0,0.00013699,2]
[423505085,1780174243000,-151.0,0.00013699,2]
[423505083,1780174243000,-151.0,0.00013699,2]
[423505079,1780174243000,-151.0,0.00013699,2]
[423505119,1780174243000,-151.0,0.00013699,2]
[423505123,1780174243000,-187.71242717,0.00013699,10]
[423505121,1780174243000,-151.0,0.00013699,2]
[423505116,1780174243000,-151.0,0.00013699,2]
[423505117,1780174243000,-151.0,0.00013699,2]
[423505118,1780174243000,-151.0,0.00013699,2]
[423505115,1780174243000,-151.0,0.00013699,2]
[423505122,1780174243000,-2500.0,0.00013699,2]
[423505125,1780174243000,-1323.0,0.00013699,2]
[423505127,1780174243000,-1323.0,0.00013699,2]
[423505134,1780174243000,-1323.0,0.00013699,2]
[423505130,1780174243000,-1323.0,0.00013699,2]
[423505120,1780174243000,-151.0,0.00013699,2]
[423505131,1780174243000,-1323.0,0.00013699,2]
[423505133,1780174243000,-1323.0,0.00013699,2]
[423505129,1780174243000,-1323.0,0.00013699,2]
[423505128,1780174243000,-1323.0,0.00013699,2]
[423505126,1780174243000,-1323.0,0.00013699,2]
[423505136,1780174243000,-1323.0,0.00013699,2]
[423505138,1780174243000,-1323.0,0.00013699,2]
[423505140,1780174243000,-1323.0,0.00013699,2]
[423505139,1780174243000,-1323.0,0.00013699,2]
[423505137,1780174243000,-1323.0,0.00013699,2]
[423505141,1780174243000,-1323.0,0.00013699,2]
[423505142,1780174243000,-1323.0,0.00013699,2]
[423505086,1780174243000,-151.0,0.00013699,2]
[423505132,1780174243000,-1323.0,0.00013699,2]
[423505124,1780174243000,-1323.0,0.00013699,2]
[423505135,1780174243000,-1323.0,0.00013699,2]
[423505113,1780174243000,-151.0,0.00013699,2]
[423505082,1780174243000,-151.0,0.00013699,2]
[423505114,1780174243000,-151.0,0.00013699,2]
[423505089,1780174243000,-151.0,0.00013699,2]
[423505088,1780174243000,-151.0,0.00013699,2]
[423505093,1780174243000,-151.0,0.00013699,2]
[423505091,1780174243000,-151.0,0.00013699,2]
[423505090,1780174243000,-151.0,0.00013699,2]
[423505094,1780174243000,-151.0,0.00013699,2]
[423505092,1780174243000,-151.0,0.00013699,2]
[423505099,1780174243000,-151.0,0.00013699,2]
[423505097,1780174243000,-151.0,0.00013699,2]
[423505095,1780174243000,-151.0,0.00013699,2]
[423505098,1780174243000,-151.0,0.00013699,2]
[423505096,1780174243000,-151.0,0.00013699,2]
[423505109,1780174243000,-151.0,0.00013699,2]
[423505108,1780174243000,-151.0,0.00013699,2]
[423505101,1780174243000,-151.0,0.00013699,2]
[423505107,1780174243000,-151.0,0.00013699,2]
[423505110,1780174243000,-151.0,0.00013699,2]
[423505112,1780174243000,-151.0,0.00013699,2]
[423505103,1780174243000,-151.0,0.00013699,2]
[423505105,1780174243000,-151.0,0.00013699,2]
[423505104,1780174243000,-151.0,0.00013699,2]
[423505102,1780174243000,-151.0,0.00013699,2]
[423505111,1780174243000,-151.0,0.00013699,2]
[423505100,1780174243000,-151.0,0.00013699,2]
[423505106,1780174243000,-151.0,0.00013699,2]
[423505199,1780174244000,-500.0,0.00014999,2]
[423505184,1780174244000,-551.39,0.00014999,2]
[423505201,1780174244000,-500.0,0.00014999,2]
[423505185,1780174244000,-551.39,0.00014999,2]
[423505183,1780174244000,-551.39,0.00014999,2]
[423505182,1780174244000,-207.9347959,0.00014999,2]
[423505177,1780174244000,-527.25,0.00014998,2]
[423505181,1780174244000,-500.0,0.00014999,2]
[423505179,1780174244000,-500.0,0.00014999,2]
[423505175,1780174244000,-527.25,0.00014998,2]
[423505178,1780174244000,-527.32996815,0.00014998,2]
[423505187,1780174244000,-551.39,0.00014999,2]
[423505180,1780174244000,-500.0,0.00014999,2]
[423505195,1780174244000,-500.0,0.00014999,2]
[423505204,1780174244000,-500.0,0.00014999,2]
[423505191,1780174244000,-551.39,0.00014999,2]
[423505197,1780174244000,-500.0,0.00014999,2]
[423505196,1780174244000,-500.0,0.00014999,2]
[423505198,1780174244000,-500.0,0.00014999,2]
[423505188,1780174244000,-551.39,0.00014999,2]
[423505189,1780174244000,-551.39,0.00014999,2]
[423505193,1780174244000,-551.43,0.00014999,2]
[423505186,1780174244000,-551.39,0.00014999,2]
[423505194,1780174244000,-500.0,0.00014999,2]
[423505202,1780174244000,-500.0,0.00014999,2]
[423505206,1780174244000,-313.45446805,0.00014999,2]
[423505213,1780174244000,-248.562,0.00015,2]
[423505176,1780174244000,-527.25,0.00014998,2]
[423505200,1780174244000,-419.13,0.00014999,2]
[423505174,1780174244000,-527.25,0.00014998,2]
[423505143,1780174244000,-1323.0,0.00013699,2]
[423505173,1780174244000,-4609.0,0.00014995,2]
[423505210,1780174244000,-334.19838374,0.00014999,2]
[423505148,1780174244000,-166.26,0.000137,2]
[423505144,1780174244000,-1323.0,0.00013699,2]
[423505147,1780174244000,-1334.0,0.00013699,2]
[423505146,1780174244000,-1323.0,0.00013699,2]
[423505145,1780174244000,-1323.0,0.00013699,2]
[423505149,1780174244000,-376.32793672,0.00013785,2]
[423505151,1780174244000,-164.92,0.00013961,2]
[423505153,1780174244000,-50753.00634154,0.0001399,2]
[423505154,1780174244000,-250.0,0.00014,2]
[423505157,1780174244000,-30971.46582449,0.00014119,2]
[423505156,1780174244000,-152.0,0.00014119,2]
[423505152,1780174244000,-166.66,0.00013973,2]
[423505171,1780174244000,-2000.0,0.00014861,2]
[423505155,1780174244000,-166.66,0.0001411,2]
[423505159,1780174244000,-500.0,0.00014238,2]
[423505158,1780174244000,-300.0,0.00014186,2]
[423505161,1780174244000,-500.0,0.00014238,2]
[423505162,1780174244000,-500.0,0.00014238,2]
[423505168,1780174244000,-810.84,0.00014389,2]
[423505172,1780174244000,-1252.0,0.00014979,2]
[423505166,1780174244000,-1946.0,0.00014318,2]
[423505163,1780174244000,-500.0,0.00014238,2]
[423505170,1780174244000,-30971.46582449,0.00014569,2]
[423505165,1780174244000,-1600.0,0.00014277,2]
[423505167,1780174244000,-166.66,0.00014384,2]
[423505169,1780174244000,-1847.66,0.00014498,2]
[423505164,1780174244000,-166.66,0.00014247,2]
[423505160,1780174244000,-551.39,0.00014238,2]
[423505208,1780174244000,-500.0,0.00014999,2]
[423505150,1780174244000,-166.66,0.00013836,2]
[423505209,1780174244000,-500.0,0.00014999,2]
[423505248,1780174244000,-1600.0,0.00015574,2]
[423505252,1780174244000,-164.92,0.00016109,2]
[423505250,1780174244000,-1048.69259149,0.00015916,2]
[423505245,1780174244000,-151.0,0.00015568,2]
[423505253,1780174244000,-219.4267048,0.00016146,2]
[423505249,1780174244000,-200.0,0.00015889,2]
[423505247,1780174244000,-151.0,0.00015568,2]
[423505244,1780174244000,-5048.8997768,0.00015568,2]
[423505243,1780174244000,-881.2560302,0.00015568,2]
[423505241,1780174244000,-151.0,0.00015568,2]
[423505246,1780174244000,-151.0,0.00015568,2]
[423505255,1780174244000,-605.1058374,0.00016218,2]
[423505265,1780174244000,-7106.14351012,0.0001693,2]
[423505266,1780174244000,-230.28389205,0.00017095,2]
[423505254,1780174244000,-2000.0,0.00016212,2]
[423505256,1780174244000,-221.97879626,0.00016438,2]
[423505261,1780174244000,-152.0,0.00016438,2]
[423505257,1780174244000,-151.0,0.00016438,2]
[423505260,1780174244000,-151.0,0.00016438,2]
[423505263,1780174244000,-4287.0,0.00016495,2]
[423505271,1780174244000,-350.0,0.00018,2]
[423505264,1780174244000,-953.61,0.00016767,2]
[423505259,1780174244000,-151.0,0.00016438,2]
[423505262,1780174244000,-855.0,0.00016453,2]
[423505268,1780174244000,-350.0,0.00017096,3]
[423505270,1780174244000,-173.99832511,0.00018,2]
[423505269,1780174244000,-500.0,0.0001726,2]
[423505267,1780174244000,-230.28389205,0.00017095,2]
[423505212,1780174244000,-3471.11,0.00015,2]
[423505251,1780174244000,-300.0,0.00016,2]
[423505242,1780174244000,-147943.9492763,0.00015568,2]
[423505258,1780174244000,-151.0,0.00016438,2]
[423505236,1780174244000,-198.578332,0.00015568,2]
[423505238,1780174244000,-198.578332,0.00015568,2]
[423505205,1780174244000,-500.0,0.00014999,2]
[423505211,1780174244000,-486.5,0.00015,2]
[423505214,1780174244000,-30971.46582449,0.00015018,2]
[423505203,1780174244000,-500.0,0.00014999,2]
[423505207,1780174244000,-500.0,0.00014999,2]
[423505227,1780174244000,-2089.59,0.00015567,2]
[423505226,1780174244000,-500.0,0.00015567,2]
[423505218,1780174244000,-30971.46582449,0.00015467,2]
[423505215,1780174244000,-164.92,0.00015035,2]
[423505217,1780174244000,-243.896559,0.00015257,2]
[423505224,1780174244000,-1460.109516,0.00015468,2]
[423505221,1780174244000,-1460.109516,0.00015468,2]
[423505220,1780174244000,-151.0,0.00015468,2]
[423505216,1780174244000,-500.0,0.00015068,2]
[423505219,1780174244000,-300.0,0.00015467,2]
[423505230,1780174244000,-2089.59,0.00015567,2]
[423505222,1780174244000,-1460.109516,0.00015468,2]
[423505237,1780174244000,-3417.9669871,0.00015568,2]
[423505232,1780174244000,-2089.77358358,0.00015567,2]
[423505239,1780174244000,-198.578332,0.00015568,2]
[423505235,1780174244000,-198.578332,0.00015568,2]
[423505229,1780174244000,-2089.59,0.00015567,2]
[423505233,1780174244000,-425859.2558229,0.00015568,2]
[423505231,1780174244000,-2089.59,0.00015567,2]
[423505228,1780174244000,-2089.59,0.00015567,2]
[423505240,1780174244000,-151.0,0.00015568,2]
[423505225,1780174244000,-300.0,0.00015566,2]
[423505223,1780174244000,-1460.109516,0.00015468,2]
[423505234,1780174244000,-151.0,0.00015568,2]
[423505296,1780174245000,-151.0,0.00019692,2]
[423505300,1780174245000,-151.0,0.00019692,2]
[423505294,1780174245000,-151.0,0.00019692,2]
[423505295,1780174245000,-151.0,0.00019692,2]
[423505299,1780174245000,-221.88543241,0.00019692,2]
[423505301,1780174245000,-230.09519341,0.00019692,2]
[423505298,1780174245000,-1428.38747117,0.00019692,2]
[423505297,1780174245000,-151.0,0.00019692,2]
[423505303,1780174245000,-238.60871557,0.00019692,2]
[423505311,1780174245000,-151.0,0.00019692,2]
[423505312,1780174245000,-151.0,0.00019692,2]
[423505310,1780174245000,-151.0,0.00019692,2]
[423505304,1780174245000,-151.0,0.00019692,2]
[423505308,1780174245000,-151.0,0.00019692,2]
[423505307,1780174245000,-151.0,0.00019692,2]
[423505313,1780174245000,-151.0,0.00019692,2]
[423505293,1780174245000,-151.0,0.00019692,2]
[423505305,1780174245000,-307.6116164,0.00019692,2]
[423505302,1780174245000,-151.0,0.00019692,2]
[423505288,1780174245000,-167.242247,0.00019178,2]
[423505272,1780174245000,-1232.0,0.00018015,5]
[423505289,1780174245000,-151.0,0.00019178,2]
[423505306,1780174245000,-151.0,0.00019692,2]
[423505277,1780174245000,-166.26,0.000184,2]
[423505278,1780174245000,-999.99,0.00018533,2]
[423505279,1780174245000,-9999.99,0.00018533,2]
[423505274,1780174245000,-173.99832511,0.000182,2]
[423505276,1780174245000,-1124.0,0.0001833,2]
[423505273,1780174245000,-1179.0,0.00018015,5]
[423505275,1780174245000,-200.0,0.00018273,2]
[423505290,1780174245000,-151.0,0.00019178,2]
[423505280,1780174245000,-4999.99,0.00018533,2]
[423505283,1780174245000,-9999.99,0.00018533,2]
[423505281,1780174245000,-299.99,0.00018533,4]
[423505284,1780174245000,-150.99,0.00018533,2]
[423505285,1780174245000,-157.23,0.00018659,2]
[423505287,1780174245000,-116224.3278372,0.00019099,2]
[423505291,1780174245000,-151.0,0.00019178,2]
[423505286,1780174245000,-344.45135437,0.00019,2]
[423505292,1780174245000,-1124.0,0.00019295,2]
[423505282,1780174245000,-6349.52,0.00018533,2]
[423505309,1780174245000,-2080.17592889,0.00019692,2]
[423505322,1780174245000,-631.0,0.0002,2]
[423505318,1780174245000,-151.0,0.00019692,2]
[423505341,1780174245000,-153.0,0.00021,2]
[423505336,1780174245000,-500.0,0.00020575,2]
[423505339,1780174245000,-605.1058374,0.00020813,2]
[423505338,1780174245000,-2236.95670847,0.00020788,2]
[423505340,1780174245000,-322.0,0.00021,2]
[423505343,1780174245000,-156.0,0.00021,2]
[423505345,1780174245000,-192.0,0.00021,2]
[423505347,1780174245000,-953.61,0.00021205,2]
[423505342,1780174245000,-631.0,0.00021,2]
[423505348,1780174245000,-1592.87721992,0.00021336,2]
[423505353,1780174245000,-2405.55389863,0.00021884,2]
[423505350,1780174245000,-1124.0,0.0002138,2]
[423505352,1780174245000,-1651.81367706,0.00021884,2]
[423505351,1780174245000,-300.0,0.0002158,2]
[423505354,1780174245000,-5000.0,0.00021918,2]
[423505356,1780174245000,-322.0,0.00022,2]
[423505355,1780174245000,-200.0,0.00021918,2]
[423505315,1780174245000,-151.0,0.00019692,2]
[423505346,1780174245000,-166.26,0.000212,2]
[423505337,1780174245000,-1536.04360648,0.00020788,2]
[423505349,1780174245000,-2319.72410669,0.00021336,2]
[423505335,1780174245000,-165.16345983,0.00020575,2]
[423505344,1780174245000,-187.0,0.00021,2]
[423505319,1780174245000,-150.40601128,0.00019753,2]
[423505317,1780174245000,-151.0,0.00019692,2]
[423505323,1780174245000,-156.0,0.0002,2]
[423505321,1780174245000,-153.0,0.0002,2]
[423505314,1780174245000,-151.0,0.00019692,2]
[423505316,1780174245000,-151.0,0.00019692,2]
[423505325,1780174245000,-187.0,0.0002,2]
[423505327,1780174245000,-159.12862396,0.00020022,2]
[423505320,1780174245000,-322.0,0.0002,2]
[423505333,1780174245000,-344.31148276,0.00020417,2]
[423505328,1780174245000,-222.92890284,0.00020022,2]
[423505324,1780174245000,-400.0,0.0002,2]
[423505330,1780174245000,-2157.14243826,0.0002024,2]
[423505329,1780174245000,-1481.2378076,0.0002024,2]
[423505332,1780174245000,-151.0,0.00020381,2]
[423505334,1780174245000,-410.06120072,0.00020417,2]
[423505331,1780174245000,-1124.0,0.00020311,2]
[423505326,1780174245000,-192.0,0.0002,2]
[423505388,1780174246000,-2494.55939288,0.00022432,2]
[423505385,1780174246000,-200.0,0.00022317,2]
[423505383,1780174246000,-246.93964,0.00022247,2]
[423505381,1780174246000,-2000.0,0.00022247,2]
[423505378,1780174246000,-1040.24438291,0.00022247,2]
[423505382,1780174246000,-246.93963,0.00022247,2]
[423505391,1780174246000,-1124.0,0.00022505,2]
[423505380,1780174246000,-2000.0,0.00022247,2]
[423505379,1780174246000,-2000.0,0.00022247,2]
[423505387,1780174246000,-711.16093774,0.00022432,2]
[423505392,1780174246000,-2586.85809042,0.0002298,2]
[423505386,1780174246000,-151.0,0.00022353,2]
[423505389,1780174246000,-1385.42,0.00022466,2]
[423505390,1780174246000,-11551.85948174,0.00022499,2]
[423505394,1780174246000,-322.0,0.00023,2]
[423505398,1780174246000,-187.0,0.00023,2]
[423505397,1780174246000,-156.0,0.00023,2]
[423505396,1780174246000,-631.0,0.00023,2]
[423505403,1780174246000,-10000.01,0.00023003,2]
[423505393,1780174246000,-501.02393452,0.00022988,2]
[423505376,1780174246000,-1000.0,0.00022247,2]
[423505357,1780174246000,-153.0,0.00022,2]
[423505384,1780174246000,-246.93964,0.00022247,2]
[423505395,1780174246000,-153.0,0.00023,2]
[423505358,1780174246000,-631.0,0.00022,2]
[423505359,1780174246000,-156.0,0.00022,2]
[423505361,1780174246000,-187.0,0.00022,2]
[423505363,1780174246000,-2000.0,0.0002202,2]
[423505360,1780174246000,-450.0,0.00022,2]
[423505362,1780174246000,-192.0,0.00022,2]
[423505365,1780174246000,-2000.0,0.0002202,2]
[423505364,1780174246000,-2000.0,0.0002202,2]
[423505369,1780174246000,-200.0,0.00022068,2]
[423505373,1780174246000,-1000.0,0.00022247,2]
[423505368,1780174246000,-246.93963,0.0002202,2]
[423505371,1780174246000,-183.241988,0.00022247,2]
[423505372,1780174246000,-1000.0,0.00022247,2]
[423505367,1780174246000,-246.93964,0.0002202,2]
[423505370,1780174246000,-603.59971906,0.00022096,2]
[423505366,1780174246000,-246.93963,0.0002202,2]
[423505375,1780174246000,-1000.0,0.00022247,2]
[423505377,1780174246000,-1000.0,0.00022247,2]
[423505374,1780174246000,-1000.0,0.00022247,2]
[423505400,1780174246000,-192.0,0.00023,2]
[423505453,1780174246000,-300.0,0.000249,9]
[423505407,1780174246000,-501.02393452,0.00023036,2]
[423505433,1780174246000,-500.0,0.00024,2]
[423505435,1780174246000,-192.0,0.00024,2]
[423505436,1780174246000,-2781.82699784,0.00024076,2]
[423505437,1780174246000,-258.79,0.00024174,2]
[423505438,1780174246000,-151.0,0.00024324,2]
[423505439,1780174246000,-2884.75459676,0.00024624,2]
[423505451,1780174246000,-345.07,0.00024886,7]
[423505441,1780174246000,-1000.0,0.00024658,2]
[423505440,1780174246000,-213.32,0.00024658,2]
[423505446,1780174246000,-345.07,0.00024658,2]
[423505447,1780174246000,-200.0,0.00024674,2]
[423505449,1780174246000,-1124.0,0.00024874,2]
[423505450,1780174246000,-344.9,0.00024886,7]
[423505445,1780174246000,-344.9,0.00024658,2]
[423505444,1780174246000,-151.0,0.00024658,2]
[423505443,1780174246000,-151.0,0.00024658,2]
[423505442,1780174246000,-151.0,0.00024658,2]
[423505452,1780174246000,-900.0,0.000249,9]
[423505405,1780174246000,-501.02393452,0.00023018,2]
[423505434,1780174246000,-187.0,0.00024,2]
[423505432,1780174246000,-156.0,0.00024,2]
[423505448,1780174246000,-10000.0,0.0002475,2]
[423505430,1780174246000,-161.8477614,0.00024,2]
[423505410,1780174246000,-501.02393452,0.0002304,2]
[423505431,1780174246000,-631.0,0.00024,2]
[423505413,1780174246000,-501.02393452,0.00023068,2]
[423505412,1780174246000,-10000.01,0.00023052,2]
[423505415,1780174246000,-166.26,0.000231,7]
[423505414,1780174246000,-10000.01,0.00023085,2]
[423505420,1780174246000,-501.02393452,0.00023261,2]
[423505418,1780174246000,-644.2,0.00023153,2]
[423505421,1780174246000,-501.02393452,0.00023264,2]
[423505416,1780174246000,-200.0,0.00023103,2]
[423505417,1780174246000,-501.02393452,0.00023117,2]
[423505423,1780174246000,-188.59,0.00023288,2]
[423505427,1780174246000,-1124.0,0.0002369,2]
[423505428,1780174246000,-200.0,0.00023889,2]
[423505425,1780174246000,-501.02393452,0.00023388,2]
[423505426,1780174246000,-2682.57183977,0.00023528,2]
[423505424,1780174246000,-501.02393452,0.00023299,2]
[423505429,1780174246000,-322.0,0.00024,2]
[423505419,1780174246000,-501.02393452,0.00023203,2]
[423505422,1780174246000,-350.0,0.00023267,2]
[423505501,1780174247000,-605.1058374,0.00025407,2]
[423505491,1780174247000,-204.64,0.00025,2]
[423505496,1780174247000,-2991.49051684,0.00025172,2]
[423505500,1780174247000,-634.5629145,0.00025397,2]
[423505493,1780174247000,-166.26,0.000251,7]
[423505511,1780174247000,-345.07,0.00025572,7]
[423505489,1780174247000,-187.0,0.00025,2]
[423505490,1780174247000,-210.33894459,0.00025,2]
[423505484,1780174247000,-239.738732,0.00025,2]
[423505499,1780174247000,-345.07,0.00025343,2]
[423505485,1780174247000,-1460.109516,0.00025,2]
[423505492,1780174247000,-601.0,0.00025082,2]
[423505497,1780174247000,-1244.0,0.00025249,5]
[423505507,1780174247000,-200.0,0.0002546,2]
[423505494,1780174247000,-344.9,0.00025115,30]
[423505498,1780174247000,-344.9,0.00025343,2]
[423505503,1780174247000,-151.0,0.00025421,2]
[423505514,1780174247000,-350.0,0.00025694,6]
[423505513,1780174247000,-953.61,0.00025644,2]
[423505504,1780174247000,-151.0,0.00025421,2]
[423505506,1780174247000,-518.43964429,0.00025422,2]
[423505505,1780174247000,-2090.15897129,0.00025422,2]
[423505502,1780174247000,-151.0,0.00025421,2]
[423505508,1780174247000,-500.0,0.00025507,2]
[423505509,1780174247000,-307.43907439,0.00025567,2]
[423505487,1780174247000,-1460.109516,0.00025,2]
[423505495,1780174247000,-345.07,0.00025115,30]
[423505486,1780174247000,-1460.109516,0.00025,2]
[423505462,1780174247000,-540.0,0.00025,2]
[423505481,1780174247000,-152.68221,0.00025,2]
[423505463,1780174247000,-620.08650724,0.00025,2]
[423505454,1780174247000,-10294.6743,0.000249,2]
[423505455,1780174247000,-151.0,0.00024997,7]
[423505456,1780174247000,-151.0,0.00024997,7]
[423505457,1780174247000,-1130.91318434,0.00025,2]
[423505460,1780174247000,-1812.12667451,0.00025,2]
[423505461,1780174247000,-1686.39177885,0.00025,2]
[423505459,1780174247000,-750.94759601,0.00025,60]
[423505458,1780174247000,-210.65590756,0.00025,2]
[423505475,1780174247000,-215.58360558,0.00025,7]
[423505465,1780174247000,-7237.32857736,0.00025,2]
[423505476,1780174247000,-151.0,0.00025,2]
[423505470,1780174247000,-337.0,0.00025,2]
[423505468,1780174247000,-303597.97829465,0.00025,2]
[423505466,1780174247000,-2233.98693747,0.00025,2]
[423505464,1780174247000,-3089.70004707,0.00025,2]
[423505467,1780174247000,-169.87055243,0.00025,2]
[423505472,1780174247000,-638.0,0.00025,2]
[423505473,1780174247000,-168.0,0.00025,2]
[423505469,1780174247000,-168711.43026542,0.00025,7]
[423505471,1780174247000,-1047.61960593,0.00025,2]
[423505477,1780174247000,-151.0,0.00025,2]
[423505478,1780174247000,-151.0,0.00025,2]
[423505480,1780174247000,-231.901232,0.00025,2]
[423505479,1780174247000,-151.0,0.00025,2]
[423505482,1780174247000,-151.0,0.00025,2]
[423505488,1780174247000,-1460.109516,0.00025,2]
[423505483,1780174247000,-151.0,0.00025,2]
[423505510,1780174247000,-344.9,0.00025572,7]
[423505535,1780174247000,-151.0,0.00026384,2]
[423505516,1780174247000,-215.58360558,0.000258,7]
[423505545,1780174247000,-208.83818787,0.0002675,2]
[423505551,1780174247000,-1291.94,0.00027052,7]